bitfinex/quotes_BTCUSD_20250830
["timestamp","ask_amount","ask_price","bid_price","bid_amount"]
[1756584823815,1.081304,108940.0,108930.0,0.1837237]
[1756584826149,1.081304,108940.0,108930.0,0.1868837]
[1756584826827,1.08129977,108940.0,108930.0,0.1868837]
[1756584827020,0.39271161,108940.0,108930.0,0.1888637]
[1756584827227,1.08129977,108940.0,108930.0,0.1888637]
[1756584828495,0.39073161,108940.0,108930.0,0.1888637]
[1756584828712,1.07931977,108940.0,108930.0,0.1888637]
[1756584830497,0.73502569,108940.0,108930.0,0.1888637]
[1756584837446,0.71781553,108940.0,108930.0,0.1888637]
[1756584837642,0.73502664,108940.0,108930.0,0.1888637]
[1756584837988,0.73502668,108940.0,108930.0,0.1888637]
[1756584841330,0.72857252,108940.0,108930.0,0.1888637]
[1756584841492,0.73502668,108940.0,108930.0,0.1888637]
[1756584842517,0.73502668,108940.0,108930.0,0.37246784]
[1756584843240,0.73502668,108940.0,108930.0,0.1888637]
[1756584845842,0.3907326,108940.0,108930.0,0.1888637]
[1756584846039,0.73502668,108940.0,108930.0,0.1888637]
[1756584846557,0.73502668,108940.0,108930.0,0.37246784]
[1756584846732,1.07932076,108940.0,108930.0,0.37246784]
[1756584846933,1.07932057,108940.0,108930.0,0.37246784]
[1756584847138,0.73502649,108940.0,108930.0,0.37246784]
[1756584847921,0.55197786,108940.0,108930.0,0.37246784]
[1756584848390,0.55393786,108940.0,108930.0,0.37246784]
[1756584848562,0.55393786,108940.0,108930.0,0.1888637]
[1756584850683,0.55197786,108940.0,108930.0,0.1888637]
[1756584851709,0.55197786,108940.0,108930.0,0.1885437]
[1756584852329,0.55197786,108940.0,108930.0,0.0354237]
[1756584852603,0.55197786,108940.0,108930.0,0.19083875]
[1756584852779,0.55197786,108940.0,108930.0,0.1885437]
[1756584852977,0.55197786,108940.0,108930.0,0.0354237]
[1756584853188,0.55197786,108940.0,108930.0,0.19083875]
[1756584853390,0.55393836,108940.0,108930.0,0.1885437]
[1756584854804,0.55393836,108940.0,108930.0,0.0302837]
[1756584855005,0.90086244,108940.0,108930.0,0.1834037]
[1756584855582,0.89823244,108940.0,108930.0,0.1834037]
[1756584857503,0.88102094,108940.0,108930.0,0.1834037]
[1756584857727,0.89823611,108940.0,108930.0,0.1834037]
[1756584858372,0.36992337,108940.0,108930.0,0.1834037]
[1756584858570,0.89780474,108940.0,108930.0,0.1834037]
[1756584862469,0.89780474,108940.0,108930.0,0.1865937]
[1756584863028,0.89780474,108940.0,108930.0,0.1834037]
[1756584864069,0.89780474,108940.0,108930.0,0.1865937]
[1756584866815,0.89780474,108940.0,108930.0,0.1834037]
[1756584867344,0.89780474,108940.0,108930.0,0.1865937]
[1756584868276,0.89780827,108940.0,108930.0,0.1865937]
[1756584868648,0.88059167,108940.0,108930.0,0.1865937]
[1756584868872,0.89780826,108940.0,108930.0,0.1834037]
[1756584869649,0.89780826,108940.0,108930.0,0.1865937]
[1756584871507,0.89780826,108940.0,108930.0,0.1887537]
[1756584871706,0.89135204,108940.0,108930.0,0.1887537]
[1756584871928,0.89780826,108940.0,108930.0,0.1887537]
[1756584872273,0.2072601,108940.0,108930.0,0.1887537]
[1756584872515,0.89584826,108940.0,108930.0,0.1887537]
[1756584872805,0.02367281,108940.0,108930.0,0.37235784]
[1756584872980,0.2072601,108940.0,108930.0,0.37235784]
[1756584873149,0.55155418,108940.0,108930.0,0.37235784]
[1756584874274,0.55155418,108940.0,108930.0,0.21923784]
[1756584874612,0.55155418,108940.0,108930.0,0.37235784]
[1756584875567,0.02367281,108940.0,108930.0,0.37235784]
[1756584875825,0.02367281,108940.0,108930.0,0.37239784]
[1756584876157,0.36151067,108940.0,108930.0,0.37239784]
[1756584876559,0.54509796,108940.0,108930.0,0.37239784]
[1756584878829,0.54509336,108940.0,108930.0,0.37239784]
[1756584880194,0.36150607,108940.0,108930.0,0.37239784]
[1756584881284,0.54509336,108940.0,108930.0,0.21923784]
[1756584881492,0.54509336,108940.0,108930.0,0.37235784]
[1756584882367,0.5450912,108940.0,108930.0,0.37235784]
[1756584883542,0.5470412,108940.0,108930.0,0.37235784]
[1756584885238,0.5450912,108940.0,108930.0,0.37235784]
[1756584888428,0.20079712,108940.0,108930.0,0.37235784]
[1756584888589,0.5450912,108940.0,108930.0,0.37235784]
[1756584889199,0.01720983,108940.0,108930.0,0.37235784]
[1756584889400,0.34429408,108940.0,108930.0,0.37235784]
[1756584889607,0.36150231,108940.0,108930.0,0.37235784]
[1756584890008,0.5450896,108940.0,108930.0,0.37235784]
[1756584892206,0.47957509,108940.0,108930.0,0.37235784]
[1756584894435,0.52786452,108950.0,108930.0,0.37235784]
[1756584894640,0.53431734,108950.0,108940.0,0.00229484]
[1756584894941,0.53629734,108950.0,108940.0,0.00229484]
[1756584895143,0.53629734,108950.0,108940.0,0.02990084]
[1756584896674,0.53729734,108950.0,108940.0,0.02990084]
[1756584897506,0.53729734,108950.0,108940.0,0.21348813]
[1756584897713,0.19300326,108950.0,108940.0,0.41647329]
[1756584897895,0.19102326,108950.0,108940.0,0.21647329]
[1756584898091,0.53729734,108950.0,108940.0,0.21647329]
[1756584899216,0.19300326,108950.0,108940.0,0.21647329]
[1756584900094,0.1930035,108950.0,108940.0,0.21647329]
[1756584902608,0.19300397,108950.0,108940.0,0.21647329]
[1756584904254,0.21021406,108950.0,108940.0,0.21647329]
[1756584904835,0.21021406,108950.0,108940.0,0.36959329]
[1756584906058,0.21021353,108950.0,108940.0,0.36959329]
[1756584908370,0.21021353,108950.0,108940.0,0.032886]
[1756584908571,0.21021353,108950.0,108940.0,0.18830084]
[1756584908772,0.55450761,108950.0,108940.0,0.186006]
[1756584909641,0.55450506,108950.0,108940.0,0.186006]
[1756584910655,0.21021098,108950.0,108940.0,0.186006]
[1756584910799,0.55450506,108950.0,108940.0,0.186006]
[1756584913286,0.55450506,108950.0,108940.0,0.032886]
[1756584913423,0.55450506,108950.0,108940.0,0.18830084]
[1756584913624,0.55450506,108950.0,108940.0,0.186006]
[1756584915366,0.55450506,108950.0,108940.0,0.027606]
[1756584915567,0.55450506,108950.0,108940.0,0.180726]
[1756584916608,0.55450506,108950.0,108940.0,0.027606]
[1756584916877,0.55450506,108950.0,108940.0,0.180726]
[1756584917795,0.55450506,108950.0,108940.0,0.027606]
[1756584917977,0.55450506,108950.0,108940.0,0.02990084]
[1756584918233,0.55450506,108950.0,108940.0,0.18302084]
[1756584918447,0.55450506,108950.0,108940.0,0.180726]
[1756584918853,0.55450506,108950.0,108940.0,0.027606]
[1756584918983,0.55450506,108950.0,108940.0,0.180726]
[1756584920533,0.55450655,108950.0,108940.0,0.180726]
[1756584920945,0.5545066,108950.0,108940.0,0.180726]
[1756584924379,0.21021252,108950.0,108940.0,0.180726]
[1756584924544,0.5545066,108950.0,108940.0,0.180726]
[1756584928547,0.55450667,108950.0,108940.0,0.180726]
[1756584930211,0.55450667,108950.0,108940.0,0.183836]
[1756584931074,0.5545074,108950.0,108940.0,0.183836]
[1756584934199,0.5545074,108950.0,108940.0,0.185996]
[1756584939076,0.02466288,108950.0,108940.0,0.71387737]
[1756584939291,0.01820937,108950.0,108940.0,0.71387737]
[1756584939734,0.01720937,108950.0,108940.0,0.71387737]
[1756584940094,0.01820937,108950.0,108940.0,0.71387737]
[1756584940299,0.01720937,108950.0,108940.0,0.71387737]
[1756584940527,0.20077981,108950.0,108940.0,0.71387737]
[1756584940727,0.01720937,108950.0,108940.0,0.71487737]
[1756584941873,0.01719963,108950.0,108940.0,0.71487737]
[1756584942931,0.01719963,108950.0,108940.0,0.71587737]
[1756584948546,0.53702534,108960.0,108940.0,0.71587737]
[1756584948747,0.53702534,108960.0,108950.0,0.18897507]
[1756584948748,0.56066546,108960.0,108950.0,0.18897507]
[1756584948946,0.20719371,108960.0,108950.0,0.53313452]
[1756584949147,0.20074641,108960.0,108950.0,0.56073652]
[1756584949782,0.20174641,108960.0,108950.0,0.56073652]
[1756584950309,0.01819282,108960.0,108950.0,0.56073652]
[1756584950553,0.01719282,108960.0,108950.0,0.63133652]
[1756584950755,0.19272787,108970.0,108960.0,0.18355359]
[1756584950914,0.56065862,108970.0,108960.0,0.33987359]
[1756584951282,0.56065862,108970.0,108960.0,0.34187359]
[1756584951488,0.21636454,108970.0,108960.0,0.36947459]
[1756584951630,0.56065862,108970.0,108960.0,0.36947459]
[1756584951836,0.56065862,108970.0,108960.0,0.36847459]
[1756584952039,0.21636454,108970.0,108960.0,0.36847459]
[1756584952255,0.54602114,108970.0,108960.0,0.36847459]
[1756584952457,0.54801773,108970.0,108960.0,0.36847459]
[1756584952911,0.20372365,108970.0,108960.0,0.36847459]
[1756584953056,0.54801773,108970.0,108960.0,0.36847459]
[1756584953255,0.54801773,108970.0,108960.0,0.56847459]
[1756584953473,0.20372365,108970.0,108960.0,0.36847459]
[1756584954305,0.18653675,108970.0,108960.0,0.36847459]
[1756584954829,0.003,108970.0,108960.0,0.56847459]
[1756584955039,0.003,108970.0,108960.0,0.36847459]
[1756584955190,0.003,108970.0,108960.0,0.56847459]
[1756584955399,0.003,108970.0,108960.0,0.36847459]
[1756584955599,0.003,108970.0,108960.0,0.91276867]
[1756584955808,0.003,108970.0,108960.0,0.71276867]
[1756584956603,0.55083757,108980.0,108970.0,0.18353675]
[1756584956804,0.55083757,108980.0,108970.0,0.18877675]
[1756584957252,0.55083757,108980.0,108970.0,0.21637475]
[1756584957453,0.5142577,108980.0,108970.0,0.21637475]
[1756584957658,0.18354938,108980.0,108970.0,0.21637475]
[1756584957862,0.53706702,108980.0,108970.0,0.21637475]
[1756584958066,0.54797978,108980.0,108970.0,0.36945475]
[1756584958745,0.54797978,108980.0,108970.0,0.37145475]
[1756584959335,0.54797978,108980.0,108970.0,0.37245475]
[1756584959562,0.56516093,108980.0,108970.0,0.37245475]
[1756584960571,0.54992978,108980.0,108970.0,0.37241475]
[1756584960774,0.56711099,108980.0,108970.0,0.21937475]
[1756584960994,0.56711099,108980.0,108970.0,0.37241475]
[1756584961599,0.54992978,108980.0,108970.0,0.030598]
[1756584961803,0.91403522,108980.0,108970.0,0.183638]
[1756584962801,0.91403522,108980.0,108970.0,0.183718]
[1756584964401,0.91403522,108980.0,108970.0,0.030598]
[1756584964601,0.91403522,108980.0,108970.0,0.183678]
[1756584964958,0.22544706,108980.0,108970.0,0.183678]
[1756584965162,0.56974114,108980.0,108970.0,0.183678]
[1756584965808,0.56711114,108980.0,108970.0,0.183678]
[1756584967727,0.56711114,108980.0,108970.0,0.030598]
[1756584967920,0.56974114,108980.0,108970.0,0.030598]
[1756584968075,0.56974114,108980.0,108970.0,0.183638]
[1756584969056,0.56973047,108980.0,108970.0,0.183638]
[1756584970676,0.56710047,108980.0,108970.0,0.183638]
[1756584973421,0.5735429,108980.0,108970.0,0.183638]
[1756584973835,4.18468906,108980.0,108970.0,0.030598]
[1756584974056,4.2254189,108980.0,108930.0,0.0002]
[1756584974266,0.87217545,108940.0,108930.0,0.0002]
[1756584974473,0.89578857,108940.0,108930.0,0.0002]
[1756584974692,1.24036857,108940.0,108930.0,0.0002]
[1756584974905,4.16459065,108940.0,108930.0,0.0002]
[1756584975118,4.20871661,108940.0,108930.0,0.0002]
[1756584975480,4.23633061,108940.0,108930.0,0.0002]
[1756584975684,4.23633061,108940.0,108930.0,0.0006767]
[1756584976074,4.23631893,108940.0,108930.0,0.0006767]
[1756584976474,4.36521045,108940.0,108930.0,0.0006767]
[1756584976704,4.36621045,108940.0,108930.0,0.0026767]
[1756584977125,4.36621045,108940.0,108930.0,0.0006767]
[1756584977286,4.03741553,108940.0,108930.0,0.0006767]
[1756584978452,4.01763805,108940.0,108930.0,0.0006767]
[1756584978661,3.67277982,108940.0,108930.0,0.0006767]
[1756584979195,4.01763805,108940.0,108930.0,0.0006767]
[1756584979396,4.0112073,108940.0,108930.0,0.0006767]
[1756584979780,4.01754595,108940.0,108930.0,0.0006767]
[1756584981734,3.67268772,108940.0,108930.0,0.0006767]
[1756584981938,3.51944772,108940.0,108930.0,0.0006767]
[1756584982135,3.67264772,108940.0,108930.0,0.0006767]
[1756584983180,4.01749762,108940.0,108930.0,0.0006767]
[1756584985785,4.01745762,108940.0,108930.0,0.0006767]
[1756584986709,4.01745648,108940.0,108930.0,0.0006767]
[1756584989638,3.78959847,108940.0,108930.0,0.0006767]
[1756584989940,3.97318576,108940.0,108930.0,0.0006767]
[1756584990167,3.96678359,108940.0,108930.0,0.0006767]
[1756584990367,3.973162,108940.0,108930.0,0.0006767]
[1756584990808,3.62830377,108940.0,108930.0,0.0006767]
[1756584991215,3.62826377,108940.0,108930.0,0.0006767]
[1756584995054,3.62826377,108940.0,108930.0,0.0039167]
[1756584996120,3.62826377,108940.0,108930.0,0.0006767]
[1756584996321,3.64795305,108940.0,108930.0,0.0006767]
[1756584998074,3.64795305,108940.0,108930.0,0.0039167]
[1756584999389,3.99280036,108940.0,108930.0,0.0039167]
[1756585000297,3.99284824,108940.0,108930.0,0.0039167]
[1756585000871,3.99286618,108940.0,108930.0,0.0039167]
[1756585001102,3.99286618,108940.0,108930.0,0.0006767]
[1756585001103,4.52133769,108940.0,108930.0,0.0006767]
[1756585001429,4.55438832,108940.0,108930.0,0.0006767]
[1756585001813,4.52966497,108940.0,108930.0,0.0006767]
[1756585002183,4.37554497,108940.0,108930.0,0.0006767]
[1756585002419,4.62696865,108940.0,108930.0,0.0006767]
[1756585002596,4.63096865,108940.0,108930.0,0.0006767]
[1756585002803,4.62396865,108940.0,108930.0,0.0006767]
[1756585003252,4.63096865,108940.0,108930.0,0.0006767]
[1756585003458,4.3027228,108940.0,108930.0,0.0006767]
[1756585003690,4.27837432,108940.0,108930.0,0.0006767]
[1756585004521,4.27847534,108940.0,108930.0,0.0006767]
[1756585006010,4.12535534,108940.0,108930.0,0.0006767]
[1756585006216,4.27847534,108940.0,108930.0,0.0006767]
[1756585006839,3.56337637,108940.0,108930.0,0.0059567]
[1756585007041,3.90826994,108940.0,108930.0,0.0059567]
[1756585007326,3.56337637,108940.0,108930.0,0.0059567]
[1756585007574,3.90826994,108940.0,108930.0,0.0059567]
[1756585008177,3.75514994,108940.0,108930.0,0.0059567]
[1756585008379,3.89170242,108940.0,108930.0,0.0059567]
[1756585008636,3.8708436,108940.0,108930.0,0.0059567]
[1756585009270,3.8678436,108940.0,108930.0,0.0059567]
[1756585009478,3.8638436,108940.0,108930.0,0.0059567]
[1756585009686,3.8688436,108940.0,108930.0,0.0059567]
[1756585010482,3.8688036,108940.0,108930.0,0.0059567]
[1756585010913,3.8658036,108940.0,108930.0,0.0059567]
[1756585011228,3.8678036,108940.0,108930.0,0.0059567]
[1756585011556,3.86780282,108940.0,108930.0,0.0059567]
[1756585011760,3.86780073,108940.0,108930.0,0.0059567]
[1756585012438,3.86780072,108940.0,108930.0,0.0059567]
[1756585012660,3.71464072,108940.0,108930.0,0.2059567]
[1756585012873,3.86780072,108940.0,108930.0,0.0059567]
[1756585013027,3.86780072,108940.0,108930.0,0.2059567]
[1756585013236,3.86780072,108940.0,108930.0,0.0059567]
[1756585013455,3.86780072,108940.0,108930.0,0.2059567]
[1756585013845,3.86780072,108940.0,108930.0,0.0059567]
[1756585014503,3.892557,108940.0,108930.0,0.0059567]
[1756585014671,3.890557,108940.0,108930.0,0.0059567]
[1756585015098,3.892557,108940.0,108930.0,0.0059567]
[1756585015588,3.39250343,108940.0,108930.0,0.0059567]
[1756585015791,3.512615,108940.0,108930.0,0.2059567]
[1756585015942,3.85650857,108940.0,108930.0,0.0059567]
[1756585016144,3.85750857,108940.0,108930.0,0.0059567]
[1756585016563,3.85750857,108940.0,108930.0,0.2059567]
[1756585016989,3.85750857,108940.0,108930.0,0.0059567]
[1756585020184,3.82989457,108940.0,108930.0,0.0059567]
[1756585020611,3.52958529,108940.0,108930.0,0.0059567]
[1756585020822,0.41251658,108940.0,108930.0,0.18956084]
[1756585021042,0.22892929,108940.0,108930.0,0.53445441]
[1756585021243,0.22892929,108940.0,108930.0,0.18956084]
[1756585021489,0.20528928,108940.0,108930.0,0.18956084]
[1756585021660,0.20923787,108940.0,108930.0,0.18956084]
[1756585022414,0.20922633,108940.0,108930.0,0.18956084]
[1756585023458,0.20278279,108940.0,108930.0,0.53445441]
[1756585023868,0.20278279,108940.0,108930.0,0.68765441]
[1756585025093,0.20278279,108940.0,108930.0,0.53445441]
[1756585025288,0.20278279,108940.0,108930.0,0.18956084]
[1756585025509,0.20278279,108940.0,108930.0,0.68765441]
[1756585026078,0.20278279,108940.0,108930.0,0.98063442]
[1756585026263,0.1856,108940.0,108930.0,0.62743442]
[1756585026467,0.1856,108940.0,108930.0,0.78063442]
[1756585027810,0.1846,108940.0,108930.0,0.78063442]
[1756585028040,0.1846,108940.0,108930.0,0.78263442]
[1756585028425,0.1836,108940.0,108930.0,0.78263442]
[1756585028631,0.1836,108940.0,108930.0,0.78563442]
[1756585029412,0.1836,108940.0,108930.0,0.28754085]
[1756585029614,0.1836,108940.0,108930.0,0.78563442]
[1756585031372,0.1836,108940.0,108930.0,0.81323642]
[1756585032158,0.1836,108940.0,108930.0,0.46834285]
[1756585032353,0.1836,108940.0,108930.0,0.81323642]
[1756585036782,0.68166928,108970.0,108960.0,0.2]
[1756585036986,0.2007067,108970.0,108960.0,0.1532]
[1756585037228,0.2007067,108970.0,108960.0,0.15631]
[1756585037602,0.2007067,108970.0,108960.0,0.00311]
[1756585037761,0.2007067,108970.0,108960.0,0.15631]
[1756585038179,0.2017067,108970.0,108960.0,0.15631]
[1756585038974,0.2027067,108970.0,108960.0,0.15631]
[1756585039832,0.2027067,108970.0,108960.0,0.34181359]
[1756585040848,0.20266774,108970.0,108960.0,0.54181359]
[1756585041048,0.20266774,108970.0,108960.0,0.34181359]
[1756585042470,0.18553675,108970.0,108960.0,0.34181359]
[1756585042797,0.20267665,108970.0,108960.0,0.34181359]
[1756585047049,0.20911274,108970.0,108960.0,0.34181359]
[1756585047299,0.20904848,108970.0,108960.0,0.34181359]
[1756585053220,0.20910474,108970.0,108960.0,0.34181359]
[1756585060941,0.55357926,108970.0,108960.0,0.00311]
[1756585061284,0.18355359,108960.0,108950.0,0.53117253]
[1756585061418,0.20074172,108960.0,108950.0,0.62610254]
[1756585061871,0.20074172,108960.0,108950.0,0.77918254]
[1756585062091,0.20074172,108960.0,108950.0,0.62610254]
[1756585062293,0.20074172,108960.0,108950.0,0.77918254]
[1756585062439,0.01718813,108960.0,108950.0,0.77918254]
[1756585062841,0.54613514,108970.0,108950.0,0.77918254]
[1756585063129,0.55258629,108970.0,108960.0,0.00313]
[1756585063535,0.55165055,108970.0,108960.0,0.00313]
[1756585063854,0.55166747,108970.0,108960.0,0.00542441]
[1756585064023,0.55266747,108970.0,108960.0,0.00542441]
[1756585064377,0.55366747,108970.0,108960.0,0.00542441]
[1756585064820,0.55366875,108970.0,108960.0,0.00542441]
[1756585065428,0.55266875,108970.0,108960.0,0.00542441]
[1756585065836,0.55366875,108970.0,108960.0,0.00542441]
[1756585066882,0.55366875,108970.0,108960.0,0.15846441]
[1756585068322,0.55366875,108970.0,108960.0,0.16041441]
[1756585074591,0.55369113,108970.0,108960.0,0.16041441]
[1756585082360,0.55369113,108970.0,108960.0,0.00542441]
[1756585082560,0.18355359,108960.0,108950.0,0.03064]
[1756585082768,0.5517075,108960.0,108950.0,0.18368]
[1756585083418,0.5517075,108960.0,108950.0,0.15304]
[1756585083419,0.89618202,108960.0,108950.0,0.15304]
[1756585084259,0.88972435,108960.0,108950.0,0.15304]
[1756585084475,0.89617248,108960.0,108950.0,0.15304]
[1756585084916,0.8961693,108960.0,108950.0,0.15304]
[1756585085364,0.18357044,108950.0,108940.0,0.254283]
[1756585085590,0.5452594,108950.0,108940.0,0.34941301]
[1756585086735,0.5452594,108950.0,108940.0,0.35141301]
[1756585087361,0.5452594,108950.0,108940.0,0.032643]
[1756585087499,0.5452594,108950.0,108940.0,0.030603]
[1756585087703,0.55170703,108950.0,108940.0,0.15604]
[1756585088530,0.55170703,108950.0,108940.0,0.003]
[1756585088693,0.55170703,108950.0,108940.0,0.00604]
[1756585089294,0.55170703,108950.0,108940.0,0.00819]
[1756585089702,0.55170703,108950.0,108940.0,0.00604]
[1756585090639,0.55170703,108950.0,108940.0,0.003]
[1756585091232,0.55166826,108950.0,108940.0,0.003]
[1756585092041,0.70474826,108950.0,108940.0,0.003]
[1756585092440,0.70474826,108950.0,108940.0,0.00604]
[1756585093248,0.20719374,108950.0,108940.0,0.00604]
[1756585093454,0.55166826,108950.0,108940.0,0.00604]
[1756585094945,0.2071748,108950.0,108940.0,0.00604]
[1756585095163,0.54521177,108950.0,108940.0,0.00604]
[1756585096879,0.54521177,108950.0,108940.0,0.00819]
[1756585102837,0.30460496,108950.0,108940.0,0.00819]
[1756585103041,0.4881754,108950.0,108940.0,0.00819]
[1756585105891,0.4881754,108950.0,108940.0,0.00604]
[1756585106131,0.49461362,108950.0,108940.0,0.003]
[1756585110388,0.64769362,108950.0,108940.0,0.003]
[1756585110611,0.64769362,108950.0,108940.0,0.00607]
[1756585114098,0.49462532,108950.0,108940.0,0.00607]
[1756585114309,0.70739139,108950.0,108940.0,0.00607]
[1756585114985,0.72459284,108950.0,108940.0,0.00607]
[1756585116384,0.72459999,108950.0,108940.0,0.00607]
[1756585116765,0.72460566,108950.0,108940.0,0.00607]
[1756585118621,0.72460566,108950.0,108940.0,0.00809]
[1756585121421,0.38013114,108950.0,108940.0,0.00809]
[1756585121626,0.72460566,108950.0,108940.0,0.00809]
[1756585123895,0.72460566,108950.0,108940.0,0.003]
[1756585125630,0.72460566,108950.0,108940.0,0.00607]
[1756585126874,0.70094714,108950.0,108940.0,0.00607]
[1756585127080,0.38013789,108950.0,108940.0,0.00607]
[1756585127205,0.72461241,108950.0,108940.0,0.00607]
[1756585129991,0.38013789,108950.0,108940.0,0.00607]
[1756585130230,0.72461241,108950.0,108940.0,0.00607]
[1756585137681,0.70740404,108950.0,108940.0,0.00607]
[1756585137911,0.72462245,108950.0,108940.0,0.00607]
[1756585138536,0.57154245,108950.0,108940.0,0.00804]
[1756585138842,0.72462245,108950.0,108940.0,0.00804]
[1756585140425,0.22706793,108950.0,108940.0,0.00804]
[1756585140626,0.57154245,108950.0,108940.0,0.00804]
[1756585140828,0.22706793,108950.0,108940.0,0.00804]
[1756585141034,0.57154245,108950.0,108940.0,0.00804]
[1756585142425,0.22706793,108950.0,108940.0,0.00804]
[1756585142744,0.57154245,108950.0,108940.0,0.00804]
[1756585143599,0.5715403,108950.0,108940.0,0.00804]
[1756585144441,0.22706578,108950.0,108940.0,0.35251452]
[1756585147151,0.20339262,108950.0,108940.0,0.35251452]
[1756585147318,0.22706285,108950.0,108940.0,0.35251452]
[1756585147510,0.22706285,108950.0,108940.0,0.00804]
[1756585150623,0.22706285,108950.0,108940.0,0.35251452]
[1756585151390,0.57153737,108950.0,108940.0,0.15608]
[1756585151619,0.57153737,108950.0,108940.0,0.15908]
[1756585152111,0.57153737,108950.0,108940.0,0.006]
[1756585156499,0.59595815,108950.0,108940.0,0.003]
[1756585157819,0.57874345,108950.0,108940.0,0.003]
[1756585158025,0.59595611,108950.0,108940.0,0.003]
[1756585161562,0.59595499,108950.0,108940.0,0.003]
[1756585161983,0.18358729,108940.0,108930.0,0.1567567]
[1756585162185,0.55172888,108940.0,108930.0,0.0036767]
[1756585162426,0.55172888,108940.0,108930.0,0.0058267]
[1756585162985,0.55172888,108940.0,108930.0,0.0068267]
[1756585163239,1.0492834,108940.0,108930.0,0.0046767]
[1756585164247,1.0492834,108940.0,108930.0,0.0066767]
[1756585164455,1.0492834,108940.0,108930.0,0.0046767]
[1756585165061,0.8962034,108940.0,108930.0,0.0046767]
[1756585165216,1.04927546,108940.0,108930.0,0.0046767]
[1756585165610,1.04927546,108940.0,108930.0,0.0036767]
[1756585165786,0.70480094,108940.0,108930.0,0.0036767]
[1756585168604,0.68114181,108940.0,108930.0,0.0036767]
[1756585168813,0.7047932,108940.0,108930.0,0.0036767]
[1756585169525,0.70479196,108940.0,108930.0,0.0036767]
[1756585170124,1.04926648,108940.0,108930.0,0.0036767]
[1756585170321,1.06907998,108940.0,108930.0,0.0036767]
[1756585170523,0.72460546,108940.0,108930.0,0.0036767]
[1756585170912,1.06907998,108940.0,108930.0,0.0006767]
[1756585171321,1.06907998,108940.0,108930.0,0.0036267]
[1756585175502,1.40907998,108940.0,108930.0,0.0036267]
[1756585175739,1.40907249,108940.0,108930.0,0.0036267]
[1756585175942,1.25599249,108940.0,108930.0,0.0036267]
[1756585176149,1.40907249,108940.0,108930.0,0.0036267]
[1756585179359,1.40907062,108940.0,108930.0,0.0036267]
[1756585180015,1.40907044,108940.0,108930.0,0.0006767]
[1756585180219,1.40907011,108940.0,108930.0,0.0006767]
[1756585180426,1.43668411,108940.0,108930.0,0.0006767]
[1756585180639,1.45105413,108940.0,108930.0,0.0006767]
[1756585180860,4.03098213,108940.0,108930.0,0.0006767]
[1756585181723,4.03097386,108940.0,108930.0,0.0006767]
[1756585182946,4.01015668,108940.0,108930.0,0.0006767]
[1756585183159,4.01660353,108940.0,108930.0,0.0006767]
[1756585184327,4.01660347,108940.0,108930.0,0.0006767]
[1756585186895,4.03097324,108940.0,108930.0,0.0006767]
[1756585188661,3.87789324,108940.0,108930.0,0.0006767]
[1756585188873,4.03097324,108940.0,108930.0,0.0006767]
[1756585190088,4.03197631,108940.0,108930.0,0.0006767]
[1756585190488,4.03197631,108940.0,108930.0,0.0038467]
[1756585190702,4.0319767,108940.0,108930.0,0.0038467]
[1756585190949,3.53442218,108940.0,108930.0,0.0038467]
[1756585191181,3.68850218,108940.0,108930.0,0.0060067]
[1756585191501,3.68750218,108940.0,108930.0,0.0060067]
[1756585191957,3.68850218,108940.0,108930.0,0.0060067]
[1756585193375,3.34402766,108940.0,108930.0,0.0060067]
[1756585193524,3.68850218,108940.0,108930.0,0.0060067]
[1756585195576,3.53542218,108940.0,108930.0,0.0060067]
[1756585195788,3.68850218,108940.0,108930.0,0.0060067]
[1756585196770,4.12127302,108940.0,108930.0,0.0006767]
[1756585196980,4.03838504,108940.0,108930.0,0.0006767]
[1756585197183,4.25038949,108940.0,108930.0,0.0006767]
[1756585197605,4.32102949,108940.0,108930.0,0.0006767]
[1756585198770,4.50462949,108940.0,108930.0,0.0006767]
[1756585200827,4.49816881,108940.0,108930.0,0.0006767]
[1756585200940,4.50461231,108940.0,108930.0,0.0006767]
[1756585201397,4.50461224,108940.0,108930.0,0.0006767]
[1756585202004,4.41631592,108940.0,108930.0,0.0006767]
[1756585202864,4.26323592,108940.0,108930.0,0.0006767]
[1756585203069,4.41631592,108940.0,108930.0,0.0006767]
[1756585204254,4.38330749,108940.0,108930.0,0.0006767]
[1756585205514,3.54127845,108940.0,108930.0,0.0006767]
[1756585205740,4.38330749,108940.0,108930.0,0.0060067]
[1756585206958,4.33288072,108940.0,108930.0,0.0060067]
[1756585209492,4.33292072,108940.0,108930.0,0.0060067]
[1756585210189,0.18363786,108910.0,108900.0,0.08129703]
[1756585210396,0.18363786,108910.0,108900.0,0.0836]
[1756585210598,0.20080516,108910.0,108900.0,0.0836]
[1756585210783,0.20080516,108910.0,108900.0,0.07441727]
[1756585211000,0.54527968,108910.0,108900.0,0.00230297]
[1756585211180,0.55514777,108910.0,108900.0,0.00459865]
[1756585211385,0.21067325,108910.0,108900.0,0.00430297]
[1756585211711,0.55514777,108910.0,108900.0,0.00730297]
[1756585211881,0.21067325,108910.0,108900.0,0.00730297]
[1756585212323,0.21067325,108910.0,108900.0,0.01047297]
[1756585212674,0.21067325,108910.0,108900.0,0.00847297]
[1756585213171,0.21067325,108910.0,108900.0,0.00547297]
[1756585213373,0.21067325,108910.0,108900.0,0.00647297]
[1756585213624,0.21067325,108910.0,108900.0,0.00847297]
[1756585214903,0.21067325,108910.0,108900.0,0.35294749]
[1756585219905,0.21067325,108910.0,108900.0,0.00847297]
[1756585221095,0.52811238,108910.0,108900.0,0.00847297]
[1756585224095,0.53800347,108910.0,108900.0,0.00847297]
[1756585225389,0.54444917,108910.0,108900.0,0.00847297]
[1756585228449,0.54445329,108910.0,108900.0,0.00847297]
[1756585231994,0.54445326,108910.0,108900.0,0.00847297]
[1756585233137,0.56165275,108910.0,108900.0,0.00847297]
[1756585237895,0.21717823,108910.0,108900.0,0.00847297]
[1756585238096,0.02709058,108910.0,108900.0,0.53889789]
[1756585238294,0.02709058,108910.0,108900.0,0.53660221]
[1756585238973,0.01719949,108910.0,108900.0,0.53660221]
[1756585239368,0.36167401,108910.0,108900.0,0.19212769]
[1756585239532,0.36167401,108910.0,108900.0,0.34520769]
[1756585240188,0.55515357,108910.0,108900.0,0.19212769]
[1756585240370,0.55711357,108910.0,108900.0,0.15622297]
[1756585241329,0.21263905,108910.0,108900.0,0.15622297]
[1756585241707,0.90158809,108910.0,108900.0,0.15622297]
[1756585241983,0.91107525,108910.0,108900.0,0.00314297]
[1756585242282,0.91107525,108910.0,108900.0,0.15622297]
[1756585242445,0.56660073,108910.0,108900.0,0.15622297]
[1756585242784,0.56659441,108910.0,108900.0,0.15622297]
[1756585243923,0.91106893,108910.0,108900.0,0.00314297]
[1756585244119,0.93556559,108910.0,108900.0,0.00314297]
[1756585244333,1.08864559,108910.0,108900.0,0.00314297]
[1756585244913,1.42864559,108910.0,108900.0,0.00314297]
[1756585247427,1.44844406,108910.0,108900.0,0.00314297]
[1756585247994,1.47606206,108910.0,108900.0,0.00214297]